Cogmind - Beta 9.1 @@@ ROGUE MODE // 2019.10.30 @ 16:13:30 Player: MrPainting Result: Destroyed by G-34 Mercenary with Small Laser Performance ------------- Evolutions (1) 500 Regions Visited (2) 400 Robots Destroyed (18) 90 Value Destroyed (450) 450 Prototype IDs (1) 20 Alien Tech Used (0) 0 Bonus (0) 0 TOTAL SCORE: 1460 Bonus ------- None Cogmind --------- Core Integrity 0/400 Matter 232/300 Energy 265/265 System Corruption 0% Temperature Cool (6) Location -9/Materials Parts ------- Power (1) Reinforced Ion Engine Propulsion (2) Light Treads Light Treads Utility (4) Heat Sink Small Storage Unit Medium Storage Unit Core Shielding Weapon (2) Heavy Assault Rifle Inventory (10) Ion Engine Light Treads Aluminum Leg Small Matter Pod (50) Light Assault Rifle Peak State ------------ Power Reinforced Ion Engine Propulsion Light Treads Light Treads Utility Heat Sink Small Storage Unit Medium Storage Unit Core Shielding Weapon Heavy Assault Rifle Improved Assault Rifle Inventory Ion Engine Light Treads Aluminum Leg Small Matter Pod Light Assault Rifle [Rating: 13] Favorites ----------- Power Reinforced Ion Engine Engine Reinforced Ion Engine Propulsion Aluminum Leg Treads Light Treads Leg Aluminum Leg Utility Small Storage Unit Device Heat Sink Storage Small Storage Unit Protection Weapon Shielding Weapon Small Laser Energy Gun Small Laser Ballistic Gun Light Assault Rifle Build | -11 -10 -9 ------- Run | Scr Mat Mat Slots Evolved 2 | . . 2 Power . | . . . Propulsion . | . . . Utility 2 | . . 2 Weapon . | . . . Parts Attached 24 | 6 2 16 Power 2 | 1 . 1 Engine 2 | 1 . 1 Core . | . . . Reactor . | . . . Propulsion 8 | 2 . 6 Treads 3 | . . 3 Leg 5 | 2 . 3 Wheel . | . . . Hover . | . . . Flight . | . . . Utility 6 | 1 1 4 Device 1 | . . 1 Storage 2 | 1 . 1 Processor . | . . . Hackware . | . . . Protection 3 | . 1 2 Artifact . | . . . Weapon 8 | 2 1 5 Energy Gun 3 | 2 . 1 Energy Cannon . | . . . Ballistic Gun 5 | . 1 4 Ballistic Cannon . | . . . Launcher . | . . . Special Weapon . | . . . Impact Weapon . | . . . Slashing Weapon . | . . . Piercing Weapon . | . . . Special Melee Weapon . | . . . Unidentified Prototypes 1 | . . 1 Parts Lost 10 | . 1 9 Power 1 | . . 1 Propulsion 2 | . . 2 Utility 2 | . . 2 Weapon 5 | . 1 4 Highest Loss Streak 4 | . 1 4 Average Slot Usage (%) 91 | . 94 91 Engine 10 | . 14 10 Treads 9 | . . 12 Leg 13 | . 28 8 Device 4 | . . 6 Storage 19 | . 14 21 Protection 10 | . 9 10 Energy Gun 9 | . 18 6 Ballistic Gun 12 | . 8 13 Naked Turns . | . . . Heaviest Build 30 | 9 10 30 Greatest Support 40 | 20 20 40 Greatest Overweight (x) 2 | . . 2 Average Overweight (x) . | . . . Largest Inventory Capacity 10 | 6 6 10 Average Capacity 8 | 5 6 9 Most Carried 7 | 4 6 7 Average Carried 3 | . 3 4 Final Capacity 10 | 6 6 10 Final Carried 6 | . 6 5 Class Distribution -------------------- 51% | Scavenger-Mutant 48% | Mutant Dominant Class ---------------- Mutant | -10/Materials Scavenger-Mutant | -9/Materials Resources | -11 -10 -9 ----------- Run | Scr Mat Mat Matter Collected 540 | 207 128 205 Remotely . | . . . Salvage Created 592 | . 178 414 Parts 41 | . 12 29 Haulers Intercepted . | . . . Recyclers Shooed . | . . . Parts Field Recycled . | . . . Retrieved Matter . | . . . Parts Self-Destructed . | . . . Prevented . | . . . Kills | -11 -10 -9 ------- Run | Scr Mat Mat Combat Hostiles Destroyed 17 | . 6 11 Guns 17 | . 6 11 Classes Destroyed 5 | . 2 3 Builder 1 | . . 1 Swarmer 7 | . 3 4 Grunt 6 | . 3 3 Brawler 1 | . . 1 Sentry 3 | . . 3 Best Kill Streak 5 | . 5 4 Combat Bots Only 5 | . 5 4 Max Kills in Single Turn 2 | . 1 2 Gunslinging 1 | . . 1 Exploded . | . . . Melee . | . . . Uniques/NPCs Destroyed . | . . . Combat | -11 -10 -9 -------- Run | Scr Mat Mat Damage Taken 1768 | . 360 1408 Core 489 | . 82 407 Absorbed by Shields . | . . . Core Remaining (%) 83 | 100 67 . Volleys Fired 64 | . 18 46 Largest 2 | . 2 2 Hottest 80 | . 80 79 Shots Fired 114 | . 35 79 Gun 114 | . 35 79 Cannon . | . . . Launcher . | . . . Special . | . . . Kinetic 74 | . 10 64 Thermal 40 | . 25 15 Explosive . | . . . Electromagnetic . | . . . Robot Hit Streak 14 | . 5 14 Robot Miss Streak 5 | . 2 5 Penetration Max . | . . . Secondary Targets 5 | . 2 3 Max Gunslinging Chain 1 | . 1 1 Shots Hit Robots 63 | . 18 45 Core Hits 29 | . 9 20 Critical Hits . | . . . Critical Kills . | . . . Critical Parts Destroyed . | . . . Melee Attacks . | . . . Impact . | . . . Slashing . | . . . Piercing . | . . . Sneak Attacks . | . . . Combat Hostiles . | . . . Follow-up Attacks . | . . . Damage Inflicted 693 | . 167 526 Guns 693 | . 167 526 Cannons . | . . . Explosions . | . . . Melee . | . . . Ramming . | . . . Kinetic 485 | . 28 457 Thermal 208 | . 139 69 Explosive . | . . . Electromagnetic . | . . . Impact . | . . . Slashing . | . . . Piercing . | . . . Highest Corruption . | . . . Average Corruption . | . . . Corruption Purged . | . . . Overload Shots . | . . . Overflow Damage . | . . . Projectiles . | . . . Explosions . | . . . Melee . | . . . Knockbacks . | . . . Impact . | . . . Kinetic . | . . . Secondary . | . . . Self-Inflicted Damage . | . . . Shots . | . . . Rammed . | . . . Targets Rammed . | . . . Kicked . | . . . Crushed . | . . . Highest Temperature 132 | . 132 23 Average Temperature 30 | . 48 4 Received Heat Transfer 429 | . 96 333 Siege Activations . | . . . Robots Corrupted . | . . . Combat Hostiles . | . . . Parts Fried . | . . . Impact Corruptions . | . . . Robots Melted . | . . . Combat Hostiles . | . . . Parts Melted . | . . . Heat Transferred 498 | . 325 173 Parts Sabotaged . | . . . Parts Stolen . | . . . Parts Stripped . | . . . Power Chain Reactions . | . . . Missiles Intercepted . | . . . Alert | -11 -10 -9 ------- Run | Scr Mat Mat Peak Influence 251 | . 145 251 Average Influence 115 | . 72 138 Maximum Alert Level 1 | . . 1 Low Security (%) 81 | . . . Level 1 18 | . . . Level 2 . | . . . Level 3 . | . . . Level 4 . | . . . Level 5 . | . . . High Security . | . . . Max Security . | . . . Squads Dispatched 1 | . 1 . Investigation 1 | . 1 . Extermination . | . . . Reinforcement . | . . . Assault . | . . . Garrison . | . . . Intercept . | . . . Construction Impeded . | . . . Haulers Reinforced . | . . . Stealth | -11 -10 -9 --------- Run | Scr Mat Mat Distress Signals 2 | . 1 1 Communications Jammed . | . . . Distress Signals . | . . . Times Spotted 37 | . 8 29 Peak Tracking Total 8 | . 5 8 Tactical Retreats 3 | . 1 2 Traps | -11 -10 -9 ------- Run | Scr Mat Mat Traps Triggered 1 | . 1 . Indirectly . | . . . Trap Hack Attempts . | . . . Triggered . | . . . Disarmed . | . . . Reprogrammed . | . . . Reused . | . . . Traps Extracted . | . . . Installed . | . . . Triggered . | . . . Machines | -11 -10 -9 ---------- Run | Scr Mat Mat Machines Disabled . | . . . Max in Single Turn . | . . . Machines Sabotaged . | . . . Garrisons Compromised . | . . . Overloaded Fab Kills . | . . . Fab Network Shutdowns . | . . . Hacking | -11 -10 -9 --------- Run | Scr Mat Mat Machines Accessed . | . . . Terminals . | . . . Fabricators . | . . . Repair Stations . | . . . Recycling Units . | . . . Scanalyzers . | . . . Garrison Access . | . . . Total Hacks . | . . . Successful . | . . . Failed . | . . . Catastrophic . | . . . Database Lockouts . | . . . Manual . | . . . Terminals . | . . . Fabricators . | . . . Repair Stations . | . . . Recycling Units . | . . . Scanalyzers . | . . . Garrison Access . | . . . Terminal Hacks . | . . . Fabricator Hacks . | . . . Repair Station Hacks . | . . . Recycling Unit Hacks . | . . . Scanalyzer . | . . . Garrison Access Hacks . | . . . Unauthorized Hacks . | . . . Terminals . | . . . Fabricators . | . . . Repair Stations . | . . . Recycling Units . | . . . Scanalyzers . | . . . Garrison Access . | . . . Data Cores Recovered . | . . . Used . | . . . Hacking Detections . | . . . Full Trace Events . | . . . Feedback Events . | . . . Feedback Blocked . | . . . Robot Schematics Acquired . | . . . Robots Built . | . . . Matter . | . . . Time . | . . . Total Robot Build Rating . | . . . Part Schematics Acquired . | . . . Parts Built . | . . . Matter . | . . . Time . | . . . Total Part Build Rating . | . . . Parts Repaired . | . . . Time . | . . . Parts Recycled . | . . . Recycled Matter . | . . . Retrieved Matter . | . . . Retrieved Components . | . . . Parts Scanalyzed . | . . . Part Schematics Acquired . | . . . Parts Damaged . | . . . Bothacking | -11 -10 -9 ------------ Run | Scr Mat Mat Used RIF Installer . | . . . Robots Hacked . | . . . Non-combat . | . . . Combat . | . . . Robot Hacks Applied . | . . . Relay Couplers Released . | . . . Robots Rewired . | . . . Allies Hacked . | . . . Hacks Repelled . | . . . Allies | -11 -10 -9 -------- Run | Scr Mat Mat Total Allies . | . . . Largest Group . | . . . Highest-Rated Group . | . . . Highest-Rated Ally . | . . . Total Orders . | . . . Ally Attacks . | . . . Total Damage . | . . . Kills . | . . . Allies Corrupted . | . . . Allies Melted . | . . . Intel | -11 -10 -9 ------- Run | Scr Mat Mat Robot Analysis Total . | . . . Derelict Logs Recovered . | . . . Drone Launches . | . . . Drone Recoveries . | . . . Exploration | -11 -10 -9 ------------- Run | Scr Mat Mat Turns Passed 864 | 59 180 625 Spaces Moved 449 | 49 98 302 Core 14 | 14 . . Treads 160 | . . 160 Legs 275 | 35 98 142 Wheels . | . . . Hover . | . . . Flight . | . . . Fastest Speed 50 | 50 120 120 Average Speed 135 | 100 120 146 Slowest Speed 180 | 120 120 180 Overloaded Moves . | . . . Propulsion Burnouts . | . . . Robots Hopped . | . . . Cave-ins Triggered . | . . . Exploration Rate (%) 15 | 3 16 27 Regions Visited 2 Branch Regions . Pre-discovered Areas . | . . . Known Exits Taken . | . . . Unknown Exits Taken 2 | 1 1 . Scrap Searched . | . . . Spaces Dug . | . . . Terrain Destroyed . | . . . Melee . | . . . Projectile . | . . . AOE . | . . . Actions | -11 -10 -9 --------- Run | Scr Mat Mat Total 593 | 58 127 408 Wait 31 | . 2 29 Move 447 | 48 97 302 Hop . | . . . Pick Up 24 | 4 8 12 Fast Attach 2 | 2 . . Attach 17 | 4 2 11 Detach . | . . . Swap 5 | . . 5 Drop 3 | . . 3 Fire 64 | . 18 46 Melee . | . . . Ram . | . . . Kick . | . . . Crush . | . . . Escape Stasis . | . . . Rewire . | . . . Trap . | . . . Miscellaneous . | . . . Route ------- -11/Scrapyard -10/Materials -9/Materials History --------- Turn | Location | Event 2 | -11/Scrapyard | Met Revision 17 2 | -11/Scrapyard | Discovered new exit (range 16) 60 | -11/Scrapyard | Entered Materials 229 | -10/Materials | Discovered new exit (range 5) 240 | -10/Materials | Entered another Materials area 240 | -9/Materials | Evolved 2 slots: Utility x2 300 | -9/Materials | Build established: Mutant 401 | -9/Materials | Core integrity fell below 50% 501 | -9/Materials | Core integrity fell below 20% 525 | -9/Materials | Lost 4 parts (1n2u1w) 797 | -9/Materials | Build established: Scavenger-Mutant 865 | -9/Materials | Destroyed by G-34 Mercenary with Small Laser Last Messages --------------- 00542_ Acquired Core Shielding. 00582_ U-05 Engineer lays Concrete. 00585_ K-01 Serf collects debris. 00645_ U-05 Engineer destroyed. 00648_ Acquired 11 matter. 00696_ S-10 Pest destroyed. 00696_ Switching to secondary target: G-34 Mercenary. 00696_ G-34 Mercenary destroyed. 00698_ K-01 Serf collects debris. 00716_ G-34 Mercenary destroyed. 00719_ Acquired 20 matter. 00766_ Destroyed Hover Unit. 00786_ R-06 Scavenger collects Aluminum Leg. 00790_ R-06 Scavenger collects Flight Unit. 00839_ Beam Rifle destroyed. 00839_ K-01 Serf cleans the Matter Pump. 00855_ Acquired Prototype Ballistic Gun. 00856_ Identified Imp. Assault Rifle. 00856_ Malfunction: Energy drain (-63). 00857_ Dropped Faulty Imp. Assault Rifle. Map ----- +----------------------------------------------------+ | # ???# #???######### #???????? | | # ""??# #???????????# """ #???????? | | # ""??# #???????????# """ #???????? | | # S"?# #???????????# """ #???????? | | # ?# #????""?????# #???????? | | #""" # #?? """?????# == #???????? | | #""" # # """ "???# = #???????? | | #""" + / # #???????? | | # [ # # # #???????? | | ??######## ###################???????? | | ????????# #????????????????? | | ????????# #????????????????? | | ????????# """ """ # ???????????????? | | ????????# """ """ / ???????????????? | | ????????# """ """ #????????????????? | | ????????# ##???????????????? | | ???????## #???????????????? | | ? """ # #???????????????? | | ? """ + /?????????????? | | ? """ # ##??????????????? | | ? ###+####g## #???????????????? | | # """ ??# #? ###???????????????? | | # """???# #?? #?????????????????? | | ??"""???# """g #?????????????????????? | | ????????#""""" #?????????????????????? | | ????????#""""" @ #?????????????????????? | | ????????#""""" #?????????????????????? | | ????????# """ #?????????????????????? | | ????????# #?????????????????????? | | ????????##########?????????????????????? | | ???????????????????????????????????????? | | ???????????????????????????????????????? | | ???????????????????????????????????????? | | ???????????????????????????????????????? | | ???????????????????????????????????????? | | ???????????????????????????????????????? | | ???????????????????????????????????????? | | ???????????????????????????????????????? | | ???????????????????????????????????????? | | ???????????????????????????????????????? | | ???????????????????????????????????????? | | ???????????????????????????????????????? | | ???????????????????????????????????????? | | ???????????????????????????????????????? | | ???????????????????????????????????????? | | ???????????????????????????????????????? | | ???????????????????????????????????????? | | ???????????????????????????????????????? | | ???????????????????????????????????????? | | ???????????????????????????????????????? | +----------------------------------------------------+ Best States ------------- Heat Dissipation 38 Energy Generation 12 Energy Capacity 265 Matter Stores 300 Matter Capacity 300 Sight Range 16 Terrain Scan Density 10 Armor Coverage 150 Core Shielding 20 Weapon Shielding 33 Evasion (%) 50 Recoil Reduction 2 Item Schematics ----------------- None Robot Schematics ------------------ None Fabricated ------------ Nothing Alien Tech Used ----------------- None Achievements -------------- None Challenges ------------ None Game ------ Seed StasisHugeInsulator Manual? 0 Play Time 00:09:50 Cumulative 68.2 hours Start 2019.10.30 @ 16:07:19 End 2019.10.30 @ 16:13:30 Sessions 1 Manual Loads 0 Difficulty Rogue Special Mode None Game No. 106 Rogue 106 Adventurer 0 Explorer 0 Win Type - Total 0 Types 0/0/0/0/0/0/0 Lore% 27 Gallery% 40 Achievement% 29 Wizard Run 0 Options --------- ASCII 0 Keyboard 0 Movement Mouse Keybinds 0 Fullscreen 1 Font 18/SmallcapsGlow Map View 76x50 Tactical HUD 1 Map Filters NONE Filters NONE Steam 1 RUN: f2b33ca3-f2ab-4700-bcf7-2947a23ba56f